bitfinex/quotes_BTCUSD_20240906
["timestamp","ask_amount","ask_price","bid_price","bid_amount"]
[1725642184240,0.185509,54144.0,54141.0,0.184702]
[1725642184453,0.369379,54145.0,54140.0,0.01]
[1725642184670,0.184696,54143.0,54140.0,0.194705]
[1725642184887,0.184697,54143.0,54142.0,0.01]
[1725642185125,0.184702,54141.0,54140.0,0.002]
[1725642185355,0.919607,54141.0,54140.0,0.002]
[1725642185596,2.129822,54141.0,54140.0,0.002]
[1725642185816,2.686327,54141.0,54140.0,0.002]
[1725642186032,2.34585638,54141.0,54140.0,0.002]
[1725642186997,2.34385638,54141.0,54140.0,0.002]
[1725642187241,1.97445138,54141.0,54140.0,0.005]
[1725642187456,1.97445138,54141.0,54140.0,0.003]
[1725642187672,1.97445138,54141.0,54140.0,0.005]
[1725642187897,2.00176755,54141.0,54140.0,0.005]
[1725642188126,2.37117255,54141.0,54140.0,0.003]
[1725642188359,2.38017255,54141.0,54140.0,0.003]
[1725642188592,0.554241,54128.0,54127.0,0.01]
[1725642188824,0.554262,54126.0,54125.0,0.01]
[1725642189078,0.554281,54124.0,54123.0,0.01]
[1725642189314,0.554292,54123.0,54122.0,0.011632]
[1725642189532,0.92382,54123.0,54122.0,0.011632]
[1725642189781,1.293348,54123.0,54122.0,0.001632]
[1725642190265,1.393348,54123.0,54122.0,0.001632]
[1725642190507,2.53157649,54123.0,54122.0,0.001632]
[1725642190787,2.51041485,54123.0,54122.0,0.001632]
[1725642191038,2.51041485,54123.0,54105.0,0.55430836]
[1725642191039,2.29637921,54106.0,54105.0,0.55430836]
[1725642191510,0.924195,54101.0,54100.0,0.001672]
[1725642191741,1.293873,54101.0,54100.0,0.001672]
[1725642192714,1.76269821,54101.0,54100.0,0.001672]
[1725642192963,1.86269821,54101.0,54100.0,0.001672]
[1725642194986,1.86669821,54101.0,54100.0,0.001672]
[1725642195244,1.024195,54101.0,54100.0,0.001672]
[1725642195700,1.401873,54101.0,54100.0,0.001672]
[1725642195927,1.86269821,54101.0,54100.0,0.001672]
[1725642196373,1.408873,54101.0,54100.0,0.001672]
[1725642196592,1.039195,54101.0,54100.0,0.001672]
[1725642197460,1.029195,54101.0,54100.0,0.001672]
[1725642197688,0.005,54101.0,54100.0,0.360372]
[1725642197914,0.009,54101.0,54100.0,0.360372]
[1725642198383,0.009,54101.0,54100.0,0.359372]
[1725642198599,0.009,54101.0,54100.0,1.34025139]
[1725642198849,0.005,54101.0,54100.0,2.47190378]
[1725642199103,0.02894887,54122.0,54121.0,0.01]
[1725642199338,0.002,54146.0,54121.0,0.01]
[1725642199339,0.369483,54130.0,54127.0,0.01]
[1725642199558,0.369483,54130.0,54121.0,0.184769]
[1725642199559,0.369461,54133.0,54130.0,0.01]
[1725642199560,0.21207996,54131.0,54130.0,0.01]
[1725642199787,0.554212,54131.0,54130.0,0.01]
[1725642200004,0.554212,54131.0,54128.0,0.3574]
[1725642200005,0.18474,54130.0,54129.0,0.01]
[1725642200258,0.18474,54130.0,54117.0,0.1816]
[1725642200259,0.05563542,54133.0,54124.0,0.3507]
[1725642200482,0.554272,54125.0,54124.0,0.01]
[1725642200715,0.369483,54130.0,54127.0,0.012]
[1725642200945,0.554241,54128.0,54127.0,0.012]
[1725642201174,0.24036542,54133.0,54132.0,0.01]
[1725642201394,0.60982542,54133.0,54132.0,0.01]
[1725642201633,0.554241,54128.0,54127.0,0.01]
[1725642202062,0.05563542,54133.0,54127.0,0.01]
[1725642202280,0.05563542,54133.0,54121.0,0.332]
[1725642202281,0.554213,54131.0,54130.0,0.01]
[1725642202709,0.654213,54131.0,54130.0,0.01]
[1725642202926,0.05963542,54133.0,54132.0,0.3533]
[1725642202927,0.0329413,54133.0,54132.0,0.3533]
[1725642203138,0.004,54133.0,54132.0,0.721133]
[1725642203351,0.004,54133.0,54132.0,0.5364]
[1725642204021,0.004,54133.0,54132.0,0.721133]
[1725642204239,0.184072,54137.0,54132.0,0.5364]
[1725642204459,0.18472,54136.0,54135.0,0.01]
[1725642204670,0.369435,54137.0,54135.0,0.01]
[1725642204897,0.554151,54137.0,54136.0,0.01]
[1725642205857,0.184716,54137.0,54136.0,0.01]
[1725642206524,0.369406,54141.0,54140.0,0.01]
[1725642206757,0.1,54144.0,54132.0,0.5264]
[1725642206758,0.184692,54144.0,54143.0,0.01]
[1725642207001,0.370147,54152.0,54146.0,0.746756]
[1725642207002,0.000816,54152.0,54146.0,0.746756]
[1725642207225,0.000816,54152.0,54146.0,0.769756]
[1725642207486,0.000816,54152.0,54146.0,1.139127]
[1725642207740,0.000816,54152.0,54146.0,1.897988]
[1725642207996,0.000816,54152.0,54146.0,1.159246]
[1725642208261,0.000816,54152.0,54146.0,1.18168886]
[1725642208517,0.000816,54152.0,54146.0,1.14459886]
[1725642208747,0.001815,54147.0,54146.0,1.14859886]
[1725642209247,0.000815,54147.0,54146.0,1.51296986]
[1725642209502,0.002815,54147.0,54146.0,1.52596986]
[1725642209756,0.002815,54147.0,54146.0,1.15659886]
[1725642210033,0.001815,54147.0,54146.0,0.756785]
[1725642210295,0.556861,54147.0,54146.0,0.5611]
[1725642210590,0.556861,54147.0,54146.0,0.3784]
[1725642210861,0.556861,54147.0,54146.0,0.3614]
[1725642210862,0.554861,54147.0,54146.0,0.3614]
[1725642211078,0.186497,54147.0,54146.0,0.3754]
[1725642211333,0.186497,54147.0,54146.0,0.3614]
[1725642211589,0.190497,54147.0,54146.0,0.3614]
[1725642211858,0.190497,54147.0,54146.0,0.938456]
[1725642211859,0.004815,54147.0,54146.0,0.938456]
[1725642212107,0.004815,54147.0,54146.0,1.7029632]
[1725642212337,0.005815,54147.0,54146.0,1.8994632]
[1725642212564,0.005815,54147.0,54146.0,1.5300922]
[1725642212825,0.004815,54147.0,54146.0,1.5220922]
[1725642213076,0.004815,54147.0,54146.0,2.11830559]
[1725642213307,0.004815,54147.0,54146.0,2.11630559]
[1725642213558,0.004815,54147.0,54146.0,2.11330559]
[1725642213778,0.004815,54147.0,54146.0,1.68407939]
[1725642214018,0.005815,54147.0,54146.0,1.69407939]
[1725642214256,0.005815,54147.0,54146.0,1.71693315]
[1725642214757,0.005815,54147.0,54146.0,2.08630415]
[1725642215017,0.001815,54147.0,54146.0,1.69107939]
[1725642215256,0.001815,54147.0,54146.0,1.136956]
[1725642215737,0.001815,54147.0,54146.0,1.496327]
[1725642215738,0.000815,54147.0,54146.0,1.496327]
[1725642215962,0.000815,54147.0,54146.0,1.126956]
[1725642216211,0.001815,54147.0,54146.0,1.507327]
[1725642216458,0.002815,54147.0,54146.0,1.521327]
[1725642216707,0.001815,54147.0,54146.0,1.510327]
[1725642216993,0.002815,54147.0,54146.0,1.70807939]
[1725642217223,0.002815,54147.0,54146.0,1.72814557]
[1725642217439,0.002815,54147.0,54146.0,2.09751657]
[1725642217654,0.002815,54147.0,54146.0,1.72977557]
[1725642218985,0.002815,54147.0,54146.0,1.70770939]
[1725642220986,0.002815,54147.0,54146.0,1.522957]
[1725642221203,0.184662,54153.0,54146.0,1.522957]
[1725642221204,0.184661,54153.0,54152.0,0.009]
[1725642221439,0.553984,54153.0,54152.0,0.009]
[1725642221898,0.923307,54153.0,54152.0,0.009]
[1725642222358,0.553984,54153.0,54152.0,0.009]
[1725642222574,0.555984,54153.0,54152.0,0.025]
[1725642223016,0.925307,54153.0,54152.0,0.025]
[1725642223245,0.002,54153.0,54152.0,0.025]
[1725642223702,0.002,54153.0,54152.0,0.232665]
[1725642224349,0.002,54153.0,54152.0,0.223665]
[1725642224350,0.001,54153.0,54152.0,0.223665]
[1725642224627,0.001,54153.0,54152.0,0.967325]
[1725642224856,0.185462,54159.0,54158.0,0.561933]
[1725642224857,0.00082,54159.0,54158.0,0.561933]
[1725642225091,0.00082,54159.0,54158.0,1.99469017]
[1725642225319,0.00082,54159.0,54158.0,2.94327192]
[1725642225539,0.00082,54159.0,54158.0,2.61425614]
[1725642225772,0.00082,54159.0,54158.0,3.31456092]
[1725642226038,0.00082,54160.0,54159.0,1.35158]
[1725642226308,0.00082,54160.0,54159.0,2.49041814]
[1725642226530,0.00082,54160.0,54159.0,2.48041814]
[1725642226983,0.00082,54160.0,54159.0,2.47841814]
[1725642227208,0.00082,54160.0,54159.0,2.48841814]
[1725642227670,0.00082,54160.0,54159.0,2.49041814]
[1725642228101,0.00182,54160.0,54159.0,2.50241814]
[1725642228335,0.00182,54160.0,54159.0,2.13313514]
[1725642228542,0.00182,54160.0,54159.0,2.14713514]
[1725642228972,0.00182,54160.0,54159.0,2.13713514]
[1725642229191,0.00182,54160.0,54159.0,2.12513514]
[1725642229424,0.00182,54160.0,54159.0,2.13713514]
[1725642229650,0.00182,54160.0,54159.0,2.13735233]
[1725642230359,0.00182,54160.0,54159.0,2.09026233]
[1725642230579,0.00182,54160.0,54159.0,1.121524]
[1725642231451,0.00182,54160.0,54159.0,1.093524]
[1725642231452,0.00082,54160.0,54159.0,1.093524]
[1725642231657,0.00182,54160.0,54159.0,1.104524]
[1725642231883,0.00282,54160.0,54159.0,1.117524]
[1725642232113,0.00182,54160.0,54159.0,1.104524]
[1725642232345,0.00182,54160.0,54159.0,0.761241]
[1725642232571,0.00282,54160.0,54159.0,1.511807]
[1725642232819,0.00282,54160.0,54159.0,0.951724]
[1725642233042,0.00282,54160.0,54159.0,1.321007]
[1725642233488,0.00282,54160.0,54159.0,1.69029]
[1725642233721,0.00282,54160.0,54159.0,1.50575939]
[1725642233954,0.00282,54160.0,54159.0,1.87504239]
[1725642234196,0.00282,54160.0,54159.0,1.50575939]
[1725642235058,0.00282,54160.0,54159.0,1.87504239]
[1725642236360,0.00282,54160.0,54159.0,1.89239722]
[1725642236805,0.00282,54160.0,54159.0,1.89439722]
[1725642237022,0.00282,54160.0,54159.0,1.89239722]
[1725642237512,0.00282,54160.0,54159.0,2.89239722]
[1725642238909,0.00282,54160.0,54159.0,2.50575939]
[1725642239602,0.00282,54160.0,54159.0,2.87504239]
[1725642239868,0.00282,54160.0,54159.0,2.321007]
[1725642240352,0.00282,54160.0,54159.0,2.50575939]
[1725642240585,0.00282,54160.0,54159.0,2.91394795]
[1725642240847,0.00282,54160.0,54159.0,2.35991256]
[1725642241075,0.00282,54160.0,54159.0,2.321007]
[1725642241308,0.00282,54160.0,54159.0,2.89656077]
[1725642241559,0.00282,54160.0,54159.0,2.91391615]
[1725642241784,0.00282,54160.0,54159.0,2.91591615]
[1725642242261,0.00282,54160.0,54159.0,3.28519915]
[1725642242524,0.00282,54160.0,54159.0,2.91591615]
[1725642242812,0.00282,54160.0,54159.0,4.21196409]
[1725642243061,0.00082,54164.0,54163.0,3.060447]
[1725642243322,0.00082,54164.0,54163.0,3.59060386]
[1725642243521,0.00082,54164.0,54163.0,3.45335452]
[1725642244492,0.00082,54164.0,54163.0,3.66148167]
[1725642244727,0.00082,54164.0,54163.0,3.50744452]
[1725642245041,0.00082,54188.0,54187.0,0.192546]
[1725642245281,0.00082,54188.0,54187.0,0.95373]
[1725642246463,0.00082,54188.0,54187.0,1.3778223]
[1725642246692,0.00082,54188.0,54187.0,1.6406377]
[1725642246915,0.00082,54188.0,54187.0,1.5870727]
[1725642247139,0.00082,54188.0,54187.0,1.5890727]
[1725642247396,0.00082,54188.0,54187.0,1.5346371]
[1725642247614,0.00082,54188.0,54187.0,1.5306371]
[1725642247844,0.00082,54188.0,54187.0,1.5446371]
[1725642248073,0.00082,54188.0,54187.0,1.5817271]
[1725642248301,0.00082,54188.0,54187.0,1.02788271]
[1725642248522,0.00082,54188.0,54187.0,0.09999978]
[1725642248767,0.369905,54188.0,54187.0,0.07699978]
[1725642248989,0.923532,54188.0,54187.0,0.028]
[1725642249247,0.923532,54188.0,54187.0,0.036]
[1725642249483,0.554447,54188.0,54187.0,0.022]
[1725642249708,0.554447,54188.0,54187.0,0.031]
[1725642249951,0.185362,54188.0,54187.0,0.031]
[1725642250165,0.554447,54188.0,54187.0,0.017]
[1725642250385,0.185362,54188.0,54187.0,0.031]
[1725642250831,0.923532,54188.0,54187.0,0.017]
[1725642251049,0.923532,54188.0,54187.0,0.008]
[1725642251284,0.923532,54188.0,54187.0,0.015]
[1725642251504,0.923532,54188.0,54187.0,0.014]
[1725642251980,1.037525,54188.0,54187.0,0.014]
[1725642252409,1.037525,54188.0,54187.0,0.207546]
[1725642252410,0.483898,54188.0,54187.0,0.207546]
[1725642252642,0.483898,54188.0,54187.0,0.014]
[1725642252643,1.037525,54188.0,54187.0,0.014]
[1725642252856,0.483898,54188.0,54187.0,0.198546]
[1725642253084,0.483898,54188.0,54187.0,0.192546]
[1725642253299,0.483898,54188.0,54187.0,0.008]
[1725642253519,0.483898,54188.0,54187.0,1.66198239]
[1725642253739,0.483898,54188.0,54187.0,2.09116439]
[1725642253970,0.483898,54188.0,54187.0,2.08916439]
[1725642254196,0.483898,54188.0,54187.0,2.12305743]
[1725642254450,0.09158661,54188.0,54187.0,3.64681173]
[1725642254674,0.00082,54196.0,54195.0,1.358719]
[1725642254893,0.00082,54196.0,54195.0,2.93417173]
[1725642255365,0.00082,54196.0,54195.0,2.23456443]
[1725642255819,0.00082,54196.0,54195.0,2.66312129]
[1725642256060,0.01,54220.0,54219.0,2.149059]
[1725642256290,0.01,54220.0,54219.0,2.6745671]
[1725642256548,0.01,54220.0,54219.0,2.6765671]
[1725642256766,0.01,54220.0,54219.0,3.08729837]
[1725642257003,0.01,54220.0,54219.0,3.0699571]
[1725642258107,0.01,54220.0,54219.0,3.0839571]
[1725642258340,0.01,54220.0,54219.0,2.7633868]
[1725642259227,2.26358907,54220.0,54219.0,0.01003136]
[1725642259460,1.89472207,54220.0,54219.0,0.01003136]
[1725642259691,0.6770861,54220.0,54197.0,0.55430836]
[1725642259946,0.6770861,54220.0,54197.0,0.73906075]
[1725642259947,0.36893,54211.0,54197.0,0.73906075]
[1725642260178,0.3414,54207.0,54198.0,0.369015]
[1725642260390,0.3414,54207.0,54197.0,0.73906075]
[1725642260391,0.3414,54212.0,54197.0,0.73906075]
[1725642260601,0.184471,54209.0,54202.0,0.184493]
[1725642260821,0.710326,54212.0,54202.0,0.368987]
[1725642261065,0.3628,54216.0,54208.0,0.368946]
[1725642261287,0.547247,54216.0,54208.0,0.184471]
[1725642261576,0.184451,54215.0,54209.0,0.18447]
[1725642261766,0.184451,54215.0,54207.0,0.368954]
[1725642261767,0.001,54212.0,54207.0,0.184475]
[1725642261989,0.001,54212.0,54204.0,0.729976]
[1725642261990,0.001,54212.0,54211.0,0.553392]
[1725642262224,0.001,54212.0,54211.0,3.06487073]
[1725642262440,0.001,54212.0,54211.0,3.18787073]
[1725642262657,0.001,54212.0,54211.0,2.34200387]
[1725642263166,0.01,54220.0,54219.0,0.553311]
[1725642263391,0.01,54220.0,54219.0,0.20775239]
[1725642263607,0.01,54220.0,54219.0,0.23035035]
[1725642264302,0.368786,54232.0,54219.0,0.23035035]
[1725642264303,0.368796,54231.0,54219.0,0.23035035]
[1725642264522,0.184424,54223.0,54220.0,0.20775239]
[1725642264783,0.184423,54223.0,54220.0,0.20775239]
[1725642265026,0.46693886,54246.0,54221.0,0.3331]
[1725642265263,0.3458,54238.0,54222.0,0.21144031]
[1725642265510,0.184412,54227.0,54222.0,0.20775239]
[1725642265753,0.184404,54229.0,54224.0,0.35]
[1725642265988,0.184404,54229.0,54225.0,0.39216839]
[1725642266217,0.184397,54231.0,54226.0,0.184412]
[1725642266455,0.184404,54229.0,54227.0,0.023]
[1725642266685,0.184406,54228.0,54227.0,0.023]
[1725642266930,0.55254,54239.0,54227.0,0.22976273]
[1725642267176,0.3364,54242.0,54228.0,0.18843978]
[1725642267422,0.184394,54232.0,54229.0,0.023]
[1725642267669,0.368778,54234.0,54230.0,0.00368749]
[1725642267918,0.184394,54232.0,54231.0,0.023]
[1725642268165,0.184389,54233.0,54231.0,0.023]
[1725642268388,0.368778,54234.0,54231.0,0.02194365]
[1725642268389,0.184387,54234.0,54231.0,0.02194365]
[1725642268624,0.368759,54236.0,54232.0,0.023]
[1725642268842,0.184385,54235.0,54232.0,0.023]
[1725642269059,0.368759,54236.0,54231.0,0.023]
[1725642269310,0.3364,54242.0,54231.0,0.03]
[1725642269523,0.18438,54236.0,54232.0,0.18807839]
[1725642269749,0.3364,54242.0,54232.0,0.18807839]
[1725642269750,0.184384,54235.0,54233.0,0.023]
[1725642269962,0.184384,54235.0,54232.0,0.002]
[1725642270182,0.368755,54237.0,54232.0,0.002]
[1725642270398,0.368743,54239.0,54232.0,0.002]
[1725642270868,0.368745,54238.0,54233.0,0.529686]
[1725642271091,0.184382,54235.0,54234.0,0.023]
[1725642271326,0.184382,54235.0,54234.0,0.04597922]
[1725642272017,0.368721,54242.0,54234.0,0.04597922]
[1725642272236,0.368719,54242.0,54235.0,0.00368715]
[1725642272470,0.184373,54238.0,54236.0,0.023]
[1725642272689,0.184375,54237.0,54236.0,0.023]
[1725642272900,0.553126,54237.0,54236.0,0.02297922]
[1725642273138,0.92193,54234.0,54233.0,0.009]
[1725642273340,0.3688,54230.0,54222.0,0.03709]
[1725642273557,0.57964732,54237.0,54222.0,0.221515]
[1725642273781,0.57964732,54237.0,54222.0,0.03709]
[1725642274023,0.184411,54227.0,54223.0,0.184423]
[1725642274273,0.57964732,54237.0,54220.0,0.03709]
[1725642274274,0.46693886,54235.0,54220.0,0.03709]
[1725642274504,0.5524,54237.0,54224.0,0.55359139]
[1725642274742,0.368781,54233.0,54226.0,0.03709]
[1725642275015,0.368769,54235.0,54227.0,0.02668774]
[1725642275266,0.368769,54235.0,54228.0,0.52535239]
[1725642275267,0.18439,54233.0,54228.0,0.52535239]
[1725642275504,0.368776,54234.0,54229.0,0.207402]
[1725642275779,0.184391,54233.0,54230.0,0.184399]
[1725642276007,0.184391,54233.0,54231.0,0.023]
[1725642276471,0.184391,54233.0,54230.0,0.207399]
[1725642276701,0.184389,54234.0,54230.0,0.207399]
[1725642277164,0.184387,54234.0,54231.0,0.184395]
[1725642277402,0.368756,54237.0,54232.0,0.023]
[1725642277629,0.184383,54235.0,54232.0,0.023]
[1725642277860,0.184387,54234.0,54232.0,0.023]
[1725642278090,0.368741,54239.0,54233.0,0.18475239]
[1725642278351,0.368741,54239.0,54235.0,0.184382]
[1725642278589,0.369554,54239.0,54236.0,0.023]
[1725642278824,0.000813,54239.0,54234.0,0.023]
[1725642279077,0.184379,54236.0,54233.0,0.207388]
[1725642279304,0.18438,54236.0,54233.0,0.023]
[1725642279558,0.000813,54239.0,54234.0,0.184385]
[1725642279827,0.184383,54235.0,54232.0,0.031]
[1725642280059,0.184383,54235.0,54233.0,0.008]
[1725642280060,0.184384,54235.0,54233.0,0.008]
[1725642280298,0.553158,54234.0,54233.0,0.008]
[1725642280542,0.553158,54234.0,54233.0,0.03959821]
[1725642280543,0.184386,54234.0,54233.0,0.03959821]
[1725642281024,0.184383,54235.0,54233.0,0.05359821]
[1725642281279,0.000813,54239.0,54234.0,0.56525239]
[1725642281488,0.000813,54239.0,54237.0,0.184374]
[1725642281704,0.000813,54239.0,54234.0,0.56525239]
[1725642281705,0.000813,54239.0,54238.0,0.39212439]
[1725642281933,0.000813,54239.0,54238.0,0.76086939]
[1725642282198,0.000813,54239.0,54238.0,0.023]
[1725642282407,0.185182,54239.0,54236.0,0.184378]
[1725642282631,0.000813,54239.0,54237.0,0.023]
[1725642282876,0.000813,54239.0,54238.0,0.18475239]
[1725642283106,0.000813,54239.0,54238.0,0.20775239]
[1725642283347,0.000813,54239.0,54238.0,1.13761439]
[1725642283561,0.000813,54239.0,54238.0,0.76886939]
[1725642284228,0.000813,54239.0,54238.0,0.215372]
[1725642284457,0.000813,54239.0,54238.0,1.52101045]
[1725642284685,0.000813,54239.0,54238.0,1.34866545]
[1725642284900,0.000813,54239.0,54238.0,0.98592045]
[1725642285114,0.000813,54239.0,54238.0,1.35466545]
[1725642285535,0.000813,54239.0,54238.0,1.36266545]
[1725642285755,0.000813,54239.0,54238.0,1.16626545]
[1725642286016,0.000813,54239.0,54238.0,0.79752045]
[1725642286225,0.000813,54239.0,54238.0,1.16626545]
[1725642286662,0.000813,54239.0,54238.0,0.77486939]
[1725642287079,0.000813,54239.0,54238.0,0.79685359]
[1725642287320,0.000813,54239.0,54238.0,1.16559859]
[1725642287981,0.000813,54239.0,54238.0,1.53434359]
[1725642288193,0.000813,54239.0,54238.0,1.57143359]
[1725642288659,0.000813,54239.0,54238.0,1.56343359]
[1725642289118,0.000813,54239.0,54238.0,0.83994359]
[1725642289334,0.000813,54239.0,54238.0,0.2664462]
[1725642289553,0.000813,54239.0,54238.0,0.2804462]
[1725642289773,0.000813,54239.0,54238.0,0.028]
[1725642289774,0.55392,54239.0,54238.0,0.028]
[1725642289992,0.922658,54239.0,54238.0,0.014]
[1725642290204,0.922658,54239.0,54238.0,0.75186939]
[1725642290205,0.000813,54239.0,54238.0,0.75186939]
[1725642290436,0.000813,54239.0,54238.0,1.15639594]
[1725642290869,0.000813,54239.0,54238.0,1.17948594]
[1725642291092,0.000813,54239.0,54238.0,1.16548594]
[1725642291322,0.000813,54239.0,54238.0,1.20248594]
[1725642291549,0.000813,54239.0,54238.0,1.18848594]
[1725642291770,0.000813,54239.0,54238.0,1.20248594]
[1725642291984,0.000813,54239.0,54238.0,0.44321439]
[1725642292419,0.000813,54239.0,54238.0,0.82595939]
[1725642293117,0.000813,54239.0,54238.0,0.84869539]
[1725642293326,0.000813,54239.0,54238.0,0.86601405]
[1725642293537,0.000813,54239.0,54238.0,1.57455617]
[1725642293752,0.000813,54239.0,54238.0,0.79701439]
[1725642294164,0.000813,54239.0,54238.0,1.16575939]
[1725642294387,0.000813,54239.0,54238.0,0.81914489]
[1725642294605,0.000813,54239.0,54238.0,1.20519867]
[1725642295964,0.55392,54239.0,54238.0,0.028]
[1725642296179,1.473158,54239.0,54238.0,0.028]
[1725642296417,1.841896,54239.0,54238.0,0.028]
[1725642296834,1.841896,54239.0,54238.0,0.014]
[1725642297265,0.184386,54234.0,54228.0,0.36881]
[1725642297485,0.184386,54234.0,54230.0,0.184398]
[1725642297692,0.18439,54233.0,54230.0,0.184398]
[1725642297904,0.184382,54235.0,54230.0,0.55354739]
[1725642298120,0.368755,54237.0,54234.0,0.221474]
[1725642298121,0.184377,54237.0,54234.0,0.221474]
[1725642298341,0.184379,54236.0,54235.0,0.023]
[1725642298562,0.368746,54238.0,54235.0,0.023]
[1725642298563,0.184376,54237.0,54235.0,0.023]
[1725642298787,0.184376,54237.0,54230.0,0.368796]
[1725642298788,0.184396,54231.0,54230.0,0.013]
[1725642299015,0.368785,54233.0,54231.0,0.023]
[1725642299016,0.184393,54232.0,54231.0,0.023]
[1725642299231,0.184392,54232.0,54230.0,0.023]
[1725642299715,0.31889406,54239.0,54226.0,0.001626]
[1725642299716,0.184409,54227.0,54226.0,0.001626]
[1725642299986,2.16524706,54227.0,54226.0,0.001626]
[1725642300214,2.67470636,54227.0,54226.0,0.001626]
[1725642300883,3.04352536,54227.0,54226.0,0.014626]
[1725642301113,3.59932743,54227.0,54226.0,0.014626]
[1725642301329,3.41434436,54227.0,54226.0,0.014626]
[1725642301575,3.41234436,54227.0,54226.0,0.014626]
[1725642301784,2.67470636,54227.0,54226.0,0.014626]
[1725642302012,2.70285976,54227.0,54226.0,0.014626]
[1725642302227,2.67570636,54227.0,54226.0,0.001626]
[1725642302672,1.79842806,54227.0,54226.0,0.001626]
[1725642302938,0.002,54227.0,54226.0,0.001626]
[1725642303164,0.001,54227.0,54226.0,0.001626]
[1725642303400,0.001,54227.0,54226.0,0.002626]
[1725642303618,0.004,54227.0,54226.0,0.79317141]
[1725642303835,0.003,54227.0,54226.0,0.54907839]
[1725642304054,0.368771,54235.0,54229.0,0.184401]
[1725642304264,0.368763,54236.0,54230.0,0.023]
[1725642304479,0.368766,54235.0,54230.0,0.023]
[1725642304695,0.31808106,54236.0,54229.0,0.023]
[1725642304905,0.368772,54234.0,54228.0,0.023]
[1725642305120,0.368772,54234.0,54228.0,0.39215539]
[1725642305121,0.184393,54232.0,54228.0,0.39215539]
[1725642305353,0.184393,54232.0,54228.0,0.20775239]
[1725642305589,0.000813,54239.0,54228.0,0.20775239]
[1725642305590,0.184374,54238.0,54229.0,0.18475239]
[1725642305818,0.184377,54237.0,54233.0,0.184387]
[1725642306046,0.185183,54239.0,54235.0,0.184382]
[1725642306269,0.185183,54239.0,54234.0,0.18475239]
[1725642306270,0.000813,54239.0,54236.0,0.023]
[1725642306758,0.000813,54239.0,54230.0,0.370797]
[1725642306759,0.553188,54231.0,54230.0,0.002]
[1725642306977,1.290821,54229.0,54228.0,0.007]
[1725642307197,0.100813,54239.0,54226.0,0.001626]
[1725642307198,0.31808106,54235.0,54226.0,0.001626]
[1725642307438,0.184402,54230.0,54226.0,0.001626]
[1725642307646,0.368793,54231.0,54226.0,0.001626]
[1725642307862,0.184409,54227.0,54226.0,0.001626]
[1725642309002,0.553228,54227.0,54226.0,0.001626]
[1725642309218,0.184409,54227.0,54226.0,0.001626]
[1725642309639,0.184406,54228.0,54226.0,0.001626]
[1725642309860,0.184406,54228.0,54226.0,0.010626]
[1725642310092,1.60894706,54227.0,54226.0,0.017626]
[1725642310327,1.60894706,54227.0,54226.0,0.001626]
[1725642310569,0.87130906,54227.0,54226.0,0.004626]
[1725642310779,0.184409,54227.0,54226.0,0.003626]
[1725642310996,0.922047,54227.0,54226.0,0.355826]
[1725642311212,0.922047,54227.0,54226.0,0.365826]
[1725642311425,1.97294706,54227.0,54226.0,0.003626]
[1725642311634,2.34176606,54227.0,54226.0,0.003626]
[1725642311853,1.60894706,54227.0,54226.0,0.003626]
[1725642312082,1.60894706,54227.0,54226.0,0.001626]
[1725642312294,1.60894706,54227.0,54226.0,0.004626]
[1725642312726,1.61194706,54227.0,54226.0,0.001626]
[1725642312944,2.25434706,54227.0,54226.0,0.001626]
[1725642313186,2.62516606,54227.0,54226.0,0.010626]
[1725642313418,2.62397906,54227.0,54226.0,0.022626]
[1725642313638,2.62397906,54227.0,54226.0,0.001626]
[1725642313859,2.62797906,54227.0,54226.0,0.001626]
[1725642314097,0.562041,54227.0,54226.0,0.561126]
[1725642314325,0.189222,54227.0,54226.0,0.001626]
[1725642314527,1.299679,54227.0,54226.0,0.002626]
[1725642314818,1.860798,54227.0,54226.0,0.002626]
[1725642315039,2.229617,54227.0,54226.0,0.002626]
[1725642315268,2.189198,54227.0,54226.0,0.002626]
[1725642315486,2.292198,54227.0,54226.0,0.003626]
[1725642315947,2.289198,54227.0,54226.0,0.002626]
[1725642316397,1.919379,54227.0,54226.0,0.002626]
[1725642316625,1.394679,54227.0,54226.0,0.002626]
[1725642316847,1.763498,54227.0,54226.0,0.002626]
[1725642317073,1.766498,54227.0,54226.0,0.003626]
[1725642317545,1.940076,54227.0,54226.0,0.003626]
[1725642317764,1.940076,54227.0,54214.0,0.001628]
[1725642317765,1.59913306,54215.0,54214.0,0.001628]
[1725642317988,2.312154,54215.0,54214.0,0.001628]
[1725642320465,1.026252,54215.0,54214.0,0.001628]
[1725642320679,0.18745,54215.0,54214.0,0.001628]
[1725642320930,0.556351,54215.0,54214.0,0.001628]
[1725642321163,0.929252,54215.0,54214.0,0.001628]
[1725642321611,0.929252,54215.0,54214.0,0.005628]
[1725642321794,0.922252,54215.0,54214.0,0.001628]
[1725642322291,0.927252,54215.0,54214.0,0.001628]
[1725642322729,0.922252,54215.0,54214.0,0.001628]
[1725642323151,0.922252,54215.0,54214.0,0.009628]
[1725642323675,1.909053,54215.0,54214.0,0.004628]
[1725642323892,1.909053,54215.0,54214.0,0.009628]
[1725642324573,1.909053,54215.0,54214.0,0.004628]
[1725642324799,1.391153,54215.0,54214.0,0.004628]
[1725642325026,1.391153,54215.0,54214.0,0.002628]
[1725642325027,1.401153,54215.0,54214.0,0.002628]
[1725642325238,0.574351,54215.0,54214.0,0.003628]
[1725642325456,0.021,54215.0,54214.0,1.32385039]
[1725642325685,0.021,54215.0,54214.0,0.99203239]
[1725642325920,0.01,54215.0,54214.0,0.40058039]